[Event "FIDE Grand Swiss 2023"]
[Site "Villa Marina, Douglas, Isle of Man, Isle Of Man"]
[Date "2023.11.02"]
[Round "8.1"]
[White "Vidit, Santosh Gujrathi"]
[Black "Nakamura, Hikaru"]
[Result "1/2-1/2"]
[TimeControl "40/90 + 30 + 30s/move"]
[WhiteFideId "5029465"]
[BlackFideId "2016192"]
[WhiteElo "2716"]
[BlackElo "2780"]

1. e4 {[%clk 01:40:17]} {[%emt 00:00:42]} c5 {[%clk 01:40:52]} {[%emt
00:00:09]} 2. c3 {[%clk 01:40:33]} {[%emt 00:00:14]} d5 {[%clk 01:40:12]}
{[%emt 00:01:10]} 3. exd5 {[%clk 01:40:42]} {[%emt 00:00:21]} Qxd5 {[%clk
01:40:30]} {[%emt 00:00:12]} 4. d4 {[%clk 01:40:56]} {[%emt 00:00:16]} Nf6
{[%clk 01:39:11]} {[%emt 00:01:49]} 5. Nf3 {[%clk 01:40:55]} {[%emt 00:00:31]}
e6 {[%clk 01:38:22]} {[%emt 00:01:19]} 6. Na3 {[%clk 01:40:24]} {[%emt
00:01:02]} Qd8 {[%clk 01:38:05]} {[%emt 00:00:47]} 7. Nc4 {[%clk 01:04:07]}
{[%emt 00:36:48]} Be7 {[%clk 01:32:52]} {[%emt 00:05:42]} 8. Bd3 {[%clk
01:02:38]} {[%emt 00:01:59]} Nbd7 {[%clk 01:21:54]} {[%emt 00:11:28]} 9. Bf4
{[%clk 01:02:27]} {[%emt 00:00:40]} O-O {[%clk 01:21:55]} {[%emt 00:00:29]} 10.
a4 {[%clk 00:54:19]} {[%emt 00:08:38]} b6 {[%clk 01:08:18]} {[%emt 00:14:07]}
11. O-O {[%clk 00:53:48]} {[%emt 00:01:00]} Bb7 {[%clk 01:07:00]} {[%emt
00:01:48]} 12. Re1 {[%clk 00:53:44]} {[%emt 00:00:34]} Nh5 {[%clk 01:00:36]}
{[%emt 00:06:55]} 13. Be3 {[%clk 00:51:36]} {[%emt 00:02:38]} Nhf6 {[%clk
01:00:25]} {[%emt 00:00:41]} 14. Bf4 {[%clk 00:45:26]} {[%emt 00:06:40]} Nh5
{[%clk 00:58:09]} {[%emt 00:02:46]} 15. Be3 {[%clk 00:45:45]} {[%emt 00:00:11]}
Nhf6 {[%clk 00:58:15]} {[%emt 00:00:24]} 16. Bf4 1/2-1/2

[Event "FIDE Grand Swiss 2023"]
[Site "Villa Marina, Douglas, Isle of Man, Isle Of Man"]
[Date "2023.11.02"]
[Round "8.2"]
[White "Caruana, Fabiano"]
[Black "Bacrot, Etienne"]
[Result "1-0"]
[TimeControl "40/90 + 30 + 30s/move"]
[WhiteFideId "2020009"]
[BlackFideId "605506"]
[WhiteElo "2786"]
[BlackElo "2669"]

1. e4 {[%clk 01:40:54]} {[%emt 00:00:05]} c5 {[%clk 01:40:56]} {[%emt
00:00:04]} 2. Nf3 {[%clk 01:41:17]} {[%emt 00:00:07]} e6 {[%clk 01:41:21]}
{[%emt 00:00:04]} 3. d4 {[%clk 01:41:37]} {[%emt 00:00:12]} cxd4 {[%clk
01:41:47]} {[%emt 00:00:04]} 4. Nxd4 {[%clk 01:42:03]} {[%emt 00:00:03]} Nc6
{[%clk 01:42:13]} {[%emt 00:00:05]} 5. Nc3 {[%clk 01:42:10]} {[%emt 00:00:23]}
Qc7 {[%clk 01:42:35]} {[%emt 00:00:06]} 6. Be3 {[%clk 01:42:07]} {[%emt
00:00:34]} a6 {[%clk 01:42:49]} {[%emt 00:00:16]} 7. a3 {[%clk 01:42:22]}
{[%emt 00:00:16]} b5 {[%clk 01:40:35]} {[%emt 00:02:44]} 8. Nxc6 {[%clk
01:42:05]} {[%emt 00:00:47]} Qxc6 {[%clk 01:39:58]} {[%emt 00:01:06]} 9. Be2
{[%clk 01:42:19]} {[%emt 00:00:16]} Bb7 {[%clk 01:38:17]} {[%emt 00:02:11]} 10.
O-O {[%clk 01:42:37]} {[%emt 00:00:13]} Ne7 {[%clk 01:26:14]} {[%emt 00:12:33]}
11. Qd2 {[%clk 01:42:28]} {[%emt 00:00:40]} Nf5 {[%clk 01:19:27]} {[%emt
00:07:16]} 12. Bf4 {[%clk 01:42:28]} {[%emt 00:00:31]} Nh4 {[%clk 01:14:14]}
{[%emt 00:05:42]} 13. Rfd1 {[%clk 01:36:45]} {[%emt 00:06:12]} Be7 {[%clk
00:55:25]} {[%emt 00:19:20]} 14. Bg5 {[%clk 01:25:51]} {[%emt 00:11:24]} Bxg5
{[%clk 00:55:50]} {[%emt 00:00:06]} 15. Qxg5 {[%clk 01:26:18]} {[%emt
00:00:03]} Ng6 {[%clk 00:56:14]} {[%emt 00:00:05]} 16. Rd4 {[%clk 01:15:24]}
{[%emt 00:11:24]} O-O {[%clk 00:47:45]} {[%emt 00:09:00]} 17. Rad1 {[%clk
01:11:01]} {[%emt 00:04:53]} Rad8 {[%clk 00:46:56]} {[%emt 00:01:18]} 18. a4
{[%clk 01:01:59]} {[%emt 00:09:32]} bxa4 {[%clk 00:42:15]} {[%emt 00:05:11]} 19.
Qa5 {[%clk 01:00:45]} {[%emt 00:01:45]} d5 {[%clk 00:27:39]} {[%emt 00:15:06]}
20. exd5 {[%clk 00:57:33]} {[%emt 00:03:42]} exd5 {[%clk 00:27:50]} {[%emt
00:00:19]} 21. Bf3 {[%clk 00:48:23]} {[%emt 00:09:40]} Qf6 {[%clk 00:28:08]}
{[%emt 00:00:10]} 22. Qxa4 {[%clk 00:45:33]} {[%emt 00:03:21]} Ne7 {[%clk
00:24:59]} {[%emt 00:03:39]} 23. h3 {[%clk 00:37:43]} {[%emt 00:08:21]} h6
{[%clk 00:21:15]} {[%emt 00:04:13]} 24. Ne4 {[%clk 00:30:07]} {[%emt 00:08:06]}
Qb6 {[%clk 00:19:19]} {[%emt 00:02:26]} 25. Rb4 {[%clk 00:28:24]} {[%emt
00:02:13]} Bc6 {[%clk 00:14:23]} {[%emt 00:05:26]} 26. Qa3 {[%clk 00:22:56]}
{[%emt 00:05:59]} Qc7 {[%clk 00:11:31]} {[%emt 00:03:21]} 27. Ng3 {[%clk
00:22:30]} {[%emt 00:00:56]} Bb5 {[%clk 00:11:45]} {[%emt 00:00:16]} 28. Rbd4
{[%clk 00:21:08]} {[%emt 00:01:52]} Rfe8 {[%clk 00:10:19]} {[%emt 00:01:57]} 29.
c3 {[%clk 00:20:19]} {[%emt 00:01:19]} Bc4 {[%clk 00:07:33]} {[%emt 00:03:15]}
30. b3 {[%clk 00:19:29]} {[%emt 00:01:21]} Bb5 {[%clk 00:08:02]} 31. Qb2 {[%clk
00:19:49]} {[%emt 00:00:10]} Rc8 {[%clk 00:08:27]} {[%emt 00:00:05]} 32. Rc1
{[%clk 00:14:47]} {[%emt 00:05:32]} Nc6 {[%clk 00:08:27]} {[%emt 00:00:30]} 33.
Rdd1 {[%clk 00:14:38]} {[%emt 00:00:39]} Ne5 {[%clk 00:08:46]} {[%emt
00:00:10]} 34. Be2 {[%clk 00:15:04]} {[%emt 00:00:04]} Bxe2 {[%clk 00:06:23]}
{[%emt 00:02:53]} 35. Qxe2 {[%clk 00:15:15]} {[%emt 00:00:20]} Qc6 {[%clk
00:05:02]} {[%emt 00:01:50]} 36. Nf5 {[%clk 00:14:55]} {[%emt 00:00:50]} Qf6
{[%clk 00:04:38]} {[%emt 00:00:55]} 37. Ne3 {[%clk 00:12:54]} {[%emt 00:02:32]}
Ng6 {[%clk 00:04:27]} {[%emt 00:00:41]} 38. Qg4 {[%clk 00:09:51]} {[%emt
00:03:33]} Ne7 {[%clk 00:04:28]} {[%emt 00:00:29]} 39. Rd4 {[%clk 00:06:17]}
{[%emt 00:04:04]} a5 {[%clk 00:04:15]} {[%emt 00:00:43]} 40. Qd1 {[%clk
00:05:02]} {[%emt 00:01:44]} Rc5 {[%clk 00:03:25]} {[%emt 00:01:20]} 41. Qd2
{[%clk 00:01:15]} {[%emt 00:04:17]} Rec8 {[%clk 00:41:45]} {[%emt 00:12:09]} 42.
Rd3 {[%clk 00:50:11]} {[%emt 00:01:34]} h5 {[%clk 00:29:05]} {[%emt 00:13:10]}
43. Rc2 {[%clk 00:40:09]} {[%emt 00:10:32]} g6 {[%clk 00:28:02]} {[%emt
00:01:33]} 44. Rc1 {[%clk 00:39:56]} {[%emt 00:00:44]} Kh7 {[%clk 00:20:51]}
{[%emt 00:07:40]} 45. Rd4 {[%clk 00:36:45]} {[%emt 00:03:41]} Qg5 {[%clk
00:17:25]} {[%emt 00:03:55]} 46. g3 {[%clk 00:33:19]} {[%emt 00:03:58]} Kg8
{[%clk 00:14:31]} {[%emt 00:03:23]} 47. Re1 {[%clk 00:32:04]} {[%emt 00:01:45]}
Qf6 {[%clk 00:13:47]} {[%emt 00:01:14]} 48. b4 {[%clk 00:26:00]} {[%emt
00:06:34]} axb4 {[%clk 00:13:05]} {[%emt 00:01:13]} 49. cxb4 {[%clk 00:26:24]}
{[%emt 00:00:06]} Rb5 {[%clk 00:13:33]} {[%emt 00:00:02]} 50. Rf4 {[%clk
00:22:15]} {[%emt 00:04:39]} Qc3 {[%clk 00:11:51]} {[%emt 00:02:11]} 51. Qxc3
{[%clk 00:15:15]} {[%emt 00:07:31]} Rxc3 {[%clk 00:12:15]} {[%emt 00:00:05]} 52.
Ng4 {[%clk 00:14:37]} {[%emt 00:01:08]} Kf8 {[%clk 00:03:19]} {[%emt 00:09:26]}
53. Ne5 {[%clk 00:09:41]} {[%emt 00:05:26]} f5 {[%clk 00:03:48]} {[%emt
00:00:02]} 54. Ra1 {[%clk 00:09:59]} {[%emt 00:00:11]} g5 {[%clk 00:01:17]}
{[%emt 00:03:01]} 55. Rd4 {[%clk 00:09:34]} {[%emt 00:00:55]} Nc6 {[%clk
00:01:08]} {[%emt 00:00:40]} 56. Nxc6 {[%clk 00:08:25]} {[%emt 00:01:39]} Rxc6
{[%clk 00:01:36]} {[%emt 00:00:01]} 57. Ra5 {[%clk 00:08:36]} {[%emt 00:00:19]}
Rxa5 {[%clk 00:01:58]} {[%emt 00:00:08]} 58. bxa5 {[%clk 00:09:03]} {[%emt
00:00:03]} Rc5 {[%clk 00:00:40]} {[%emt 00:01:49]} 59. Ra4 {[%clk 00:09:18]}
{[%emt 00:00:15]} Ke7 {[%clk 00:00:45]} {[%emt 00:00:24]} 60. a6 {[%clk
00:08:36]} {[%emt 00:01:12]} Rc8 {[%clk 00:01:14]} 1-0

[Event "FIDE Grand Swiss 2023"]
[Site "Villa Marina, Douglas, Isle of Man, Isle Of Man"]
[Date "2023.11.02"]
[Round "8.4"]
[White "Erigaisi, Arjun"]
[Black "Kuzubov, Yuriy"]
[Result "1/2-1/2"]
[TimeControl "40/90 + 30 + 30s/move"]
[WhiteFideId "35009192"]
[BlackFideId "14112906"]
[WhiteElo "2712"]
[BlackElo "2625"]

1. d4 {[%clk 01:40:56]} {[%emt 00:00:03]} d5 {[%clk 01:39:59]} {[%emt
00:01:01]} 2. c4 {[%clk 01:41:21]} {[%emt 00:00:06]} e6 {[%clk 01:40:24]}
{[%emt 00:00:04]} 3. Nc3 {[%clk 01:41:45]} {[%emt 00:00:07]} Nf6 {[%clk
01:40:47]} {[%emt 00:00:06]} 4. cxd5 {[%clk 01:41:59]} {[%emt 00:00:17]} exd5
{[%clk 01:41:13]} {[%emt 00:00:04]} 5. Bg5 {[%clk 01:42:24]} {[%emt 00:00:05]}
c6 {[%clk 01:41:33]} {[%emt 00:00:09]} 6. e3 {[%clk 01:42:50]} {[%emt
00:00:04]} Be7 {[%clk 01:41:50]} {[%emt 00:00:13]} 7. Bd3 {[%clk 01:43:14]}
{[%emt 00:00:06]} O-O {[%clk 01:41:27]} {[%emt 00:00:54]} 8. h3 {[%clk
01:43:14]} {[%emt 00:00:30]} Re8 {[%clk 01:40:50]} {[%emt 00:01:07]} 9. Nf3
{[%clk 01:39:34]} {[%emt 00:04:10]} Nbd7 {[%clk 01:16:30]} {[%emt 00:24:50]} 10.
Qc2 {[%clk 01:37:04]} {[%emt 00:03:00]} a5 {[%clk 01:13:07]} {[%emt 00:03:52]}
11. Bf4 {[%clk 01:23:58]} {[%emt 00:13:36]} Nf8 {[%clk 01:08:08]} {[%emt
00:05:30]} 12. Bh2 {[%clk 01:12:12]} {[%emt 00:12:16]} Bd6 {[%clk 01:00:41]}
{[%emt 00:07:56]} 13. Ne5 {[%clk 01:10:35]} {[%emt 00:02:07]} Qe7 {[%clk
00:55:21]} {[%emt 00:05:50]} 14. O-O-O {[%clk 00:58:15]} {[%emt 00:12:50]} Bb4
{[%clk 00:29:57]} {[%emt 00:25:54]} 15. Kb1 {[%clk 00:44:57]} {[%emt 00:13:49]}
Bxc3 {[%clk 00:23:22]} {[%emt 00:07:04]} 16. Qxc3 {[%clk 00:45:21]} {[%emt
00:00:06]} Ne4 {[%clk 00:23:29]} {[%emt 00:00:23]} 17. Qc2 {[%clk 00:38:39]}
{[%emt 00:07:12]} f6 {[%clk 00:22:35]} {[%emt 00:01:23]} 18. f3 {[%clk
00:32:26]} {[%emt 00:06:44]} Ng5 {[%clk 00:10:10]} {[%emt 00:12:55]} 19. h4
{[%clk 00:31:02]} {[%emt 00:01:54]} Nge6 {[%clk 00:10:36]} {[%emt 00:00:04]} 20.
Ng4 {[%clk 00:31:24]} {[%emt 00:00:09]} c5 {[%clk 00:10:00]} {[%emt 00:01:05]}
21. h5 {[%clk 00:27:49]} {[%emt 00:04:05]} c4 {[%clk 00:08:34]} {[%emt
00:01:57]} 22. Bf5 {[%clk 00:27:55]} {[%emt 00:00:24]} Ng5 {[%clk 00:05:38]}
{[%emt 00:03:25]} 23. Bxc8 {[%clk 00:19:50]} {[%emt 00:08:35]} Raxc8 {[%clk
00:06:05]} {[%emt 00:00:03]} 24. Bf4 {[%clk 00:20:15]} {[%emt 00:00:05]} Nge6
{[%clk 00:05:02]} {[%emt 00:01:34]} 25. Bg3 {[%clk 00:20:17]} {[%emt 00:00:28]}
h6 {[%clk 00:03:06]} {[%emt 00:02:25]} 26. Bh4 {[%clk 00:17:50]} {[%emt
00:02:56]} Nh7 {[%clk 00:01:42]} {[%emt 00:01:54]} 27. Rhe1 {[%clk 00:09:15]}
{[%emt 00:09:06]} Qf7 {[%clk 00:01:13]} {[%emt 00:00:59]} 28. Qf5 {[%clk
00:09:19]} {[%emt 00:00:26]} Nef8 {[%clk 00:00:37]} {[%emt 00:01:06]} 29. e4
{[%clk 00:09:19]} {[%emt 00:00:31]} dxe4 {[%clk 00:00:54]} {[%emt 00:00:13]} 30.
fxe4 {[%clk 00:08:50]} {[%emt 00:00:58]} Qe6 {[%clk 00:00:39]} {[%emt
00:00:45]} 31. Qf3 {[%clk 00:08:31]} {[%emt 00:00:49]} Qb6 {[%clk 00:00:36]}
{[%emt 00:00:33]} 32. Ka1 {[%clk 00:08:04]} {[%emt 00:00:58]} Qb4 {[%clk
00:00:36]} {[%emt 00:00:30]} 33. Re3 {[%clk 00:07:27]} {[%emt 00:01:07]} Ne6
{[%clk 00:00:44]} {[%emt 00:00:22]} 34. e5 {[%clk 00:07:23]} {[%emt 00:00:33]}
fxe5 {[%clk 00:00:33]} {[%emt 00:00:41]} 35. Be1 {[%clk 00:03:40]} {[%emt
00:04:13]} Qf8 {[%clk 00:00:44]} {[%emt 00:00:19]} 36. Qxf8+ {[%clk 00:02:15]}
{[%emt 00:01:55]} Nhxf8 {[%clk 00:00:50]} {[%emt 00:00:25]} 37. Rxe5 {[%clk
00:02:04]} {[%emt 00:00:41]} b6 {[%clk 00:00:56]} {[%emt 00:00:23]} 38. Bc3
{[%clk 00:01:58]} {[%emt 00:00:37]} Nf4 {[%clk 00:00:47]} {[%emt 00:00:38]} 39.
Rb5 {[%clk 00:01:46]} {[%emt 00:00:42]} Nd7 {[%clk 00:00:41]} {[%emt 00:00:36]}
40. Ne5 {[%clk 00:00:47]} {[%emt 00:01:29]} Nxe5 {[%clk 00:00:53]} {[%emt
00:00:17]} 41. dxe5 {[%clk 00:01:12]} {[%emt 00:00:06]} Ne2 {[%clk 00:43:27]}
{[%emt 00:07:55]} 42. a4 {[%clk 00:46:25]} {[%emt 00:05:19]} Nxc3 {[%clk
00:42:19]} {[%emt 00:01:38]} 43. bxc3 {[%clk 00:46:51]} {[%emt 00:00:03]} Rc6
{[%clk 00:41:34]} {[%emt 00:01:15]} 44. Kb1 {[%clk 00:40:42]} {[%emt 00:06:39]}
Kf7 {[%clk 00:40:36]} {[%emt 00:01:28]} 45. Kc2 {[%clk 00:39:27]} {[%emt
00:01:46]} Ke6 {[%clk 00:35:47]} {[%emt 00:05:18]} 46. Rd4 {[%clk 00:35:45]}
{[%emt 00:04:12]} Rg8 {[%clk 00:22:08]} {[%emt 00:14:08]} 47. Rf4 {[%clk
00:30:14]} {[%emt 00:06:01]} Ke7 {[%clk 00:18:19]} {[%emt 00:04:19]} 48. Kd2
{[%clk 00:29:34]} {[%emt 00:01:11]} g6 {[%clk 00:18:36]} {[%emt 00:00:13]} 49.
Rf6 {[%clk 00:28:50]} {[%emt 00:01:14]} Rxf6 {[%clk 00:18:54]} {[%emt
00:00:11]} 50. exf6+ {[%clk 00:29:13]} {[%emt 00:00:08]} Kf7 {[%clk 00:19:20]}
{[%emt 00:00:03]} 51. hxg6+ {[%clk 00:27:50]} {[%emt 00:01:54]} Rxg6 {[%clk
00:17:38]} {[%emt 00:02:12]} 52. Rxb6 {[%clk 00:28:10]} {[%emt 00:00:10]} Rxg2+
{[%clk 00:12:25]} {[%emt 00:05:43]} 53. Ke3 {[%clk 00:28:26]} {[%emt 00:00:14]}
h5 {[%clk 00:09:53]} {[%emt 00:03:01]} 54. Rb5 {[%clk 00:27:51]} {[%emt
00:01:06]} h4 {[%clk 00:09:40]} {[%emt 00:00:43]} 55. Rxa5 {[%clk 00:27:55]}
{[%emt 00:00:26]} Rg3+ {[%clk 00:09:54]} {[%emt 00:00:16]} 56. Kd4 {[%clk
00:27:52]} {[%emt 00:00:33]} Rg4+ {[%clk 00:10:08]} {[%emt 00:00:16]} 57. Ke3
{[%clk 00:28:16]} {[%emt 00:00:06]} Rg3+ {[%clk 00:10:27]} {[%emt 00:00:11]} 58.
Kd4 {[%clk 00:28:40]} {[%emt 00:00:06]} Rg4+ {[%clk 00:10:43]} {[%emt
00:00:14]} 1/2-1/2

[Event "FIDE Grand Swiss 2023"]
[Site "Villa Marina, Douglas, Isle of Man, Isle Of Man"]
[Date "2023.11.02"]
[Round "8.5"]
[White "Deac, Bogdan-Daniel"]
[Black "Wojtaszek, Radoslaw"]
[Result "1-0"]
[TimeControl "40/90 + 30 + 30s/move"]
[WhiteFideId "1226380"]
[BlackFideId "1118358"]
[WhiteElo "2701"]
[BlackElo "2668"]

1. e4 {[%clk 01:40:57]} {[%emt 00:00:02]} e5 {[%clk 01:40:53]} {[%emt
00:00:07]} 2. Nf3 {[%emt 00:00:06]} Nc6 {[%clk 01:41:16]} {[%emt 00:00:05]} 3.
Bc4 {[%clk 01:41:36]} {[%emt 00:00:17]} Bc5 {[%clk 01:41:37]} {[%emt 00:00:10]}
4. c3 {[%clk 01:42:01]} {[%emt 00:00:05]} Nf6 {[%clk 01:41:59]} {[%emt
00:00:06]} 5. d3 {[%clk 01:42:27]} {[%emt 00:00:05]} d6 {[%clk 01:42:22]}
{[%emt 00:00:08]} 6. O-O {[%clk 01:42:52]} a6 {[%clk 01:42:45]} {[%emt
00:00:12]} 7. Re1 {[%clk 01:42:32]} Ba7 {[%clk 01:43:01]} {[%emt 00:01:04]} 8.
a4 {[%clk 01:42:45]} O-O {[%clk 01:43:19]} {[%emt 00:00:26]} 9. h3 {[%clk
01:43:05]} {[%emt 00:00:12]} Re8 {[%clk 01:43:37]} {[%emt 00:00:12]} 10. Nbd2
{[%clk 01:41:09]} {[%emt 00:02:27]} Be6 {[%clk 01:43:17]} {[%emt 00:00:50]} 11.
Bxe6 {[%clk 01:34:14]} {[%emt 00:07:26]} Rxe6 {[%clk 01:43:30]} {[%emt
00:00:16]} 12. b4 {[%clk 01:34:40]} {[%emt 00:00:04]} d5 {[%clk 01:43:50]}
{[%emt 00:00:09]} 13. Rb1 {[%clk 01:33:38]} {[%emt 00:01:32]} dxe4 {[%clk
01:28:01]} {[%emt 00:16:20]} 14. Nxe4 {[%clk 01:09:15]} {[%emt 00:24:54]} Nxe4
{[%clk 01:27:00]} {[%emt 00:01:30]} 15. dxe4 {[%clk 01:08:39]} {[%emt
00:01:06]} Qxd1 {[%clk 01:06:39]} {[%emt 00:20:51]} 16. Rxd1 {[%clk 01:06:30]}
{[%emt 00:02:39]} f6 {[%clk 01:06:59]} {[%emt 00:00:09]} 17. Kf1 {[%clk
00:55:08]} {[%emt 00:11:52]} Rd8 {[%clk 01:05:29]} {[%emt 00:02:00]} 18. Rd2
{[%clk 00:40:30]} {[%emt 00:15:08]} Red6 {[%clk 01:00:49]} {[%emt 00:05:10]} 19.
Ke2 {[%clk 00:40:52]} {[%emt 00:00:08]} Kf7 {[%clk 01:00:51]} {[%emt 00:00:28]}
20. Rbb2 {[%clk 00:32:14]} {[%emt 00:09:09]} Ke6 {[%clk 01:00:03]} {[%emt
00:01:18]} 21. Rbc2 {[%clk 00:31:07]} {[%emt 00:01:37]} R6d7 {[%clk 01:00:03]}
{[%emt 00:00:30]} 22. Rxd7 {[%clk 00:30:59]} {[%emt 00:00:38]} Rxd7 {[%clk
01:00:26]} {[%emt 00:00:06]} 23. Nd2 {[%clk 00:31:09]} {[%emt 00:00:20]} Rd8
{[%clk 00:48:33]} {[%emt 00:12:24]} 24. Nb3 {[%clk 00:28:01]} {[%emt 00:03:38]}
Nb8 {[%clk 00:38:17]} {[%emt 00:10:46]} 25. Na5 {[%clk 00:26:28]} {[%emt
00:02:03]} b6 {[%clk 00:32:16]} {[%emt 00:06:31]} 26. Nb3 {[%clk 00:26:27]}
{[%emt 00:00:30]} b5 {[%clk 00:32:02]} {[%emt 00:00:45]} 27. Ra2 {[%clk
00:19:56]} {[%emt 00:07:00]} Bb6 {[%clk 00:31:53]} {[%emt 00:00:39]} 28. f4
{[%clk 00:04:04]} {[%emt 00:16:22]} Rd6 {[%clk 00:26:53]} {[%emt 00:05:30]} 29.
f5+ {[%clk 00:02:57]} {[%emt 00:01:38]} Ke7 {[%clk 00:26:46]} {[%emt 00:00:36]}
30. g4 {[%clk 00:02:45]} {[%emt 00:00:42]} h6 {[%clk 00:27:11]} {[%emt
00:00:06]} 31. axb5 {[%clk 00:01:24]} {[%emt 00:01:51]} axb5 {[%clk 00:27:35]}
{[%emt 00:00:05]} 32. h4 {[%clk 00:01:50]} {[%emt 00:00:04]} Rd8 {[%clk
00:25:05]} {[%emt 00:03:00]} 33. Bd2 {[%clk 00:00:41]} {[%emt 00:01:39]} Nd7
{[%clk 00:25:05]} {[%emt 00:00:30]} 34. Ra6 {[%clk 00:00:50]} {[%emt 00:00:22]}
Nb8 {[%clk 00:25:11]} {[%emt 00:00:24]} 35. Ra2 {[%clk 00:00:35]} {[%emt
00:00:44]} Nd7 {[%clk 00:25:40]} {[%emt 00:00:02]} 36. Ra1 {[%clk 00:00:40]}
{[%emt 00:00:25]} Kf7 {[%clk 00:23:50]} {[%emt 00:02:20]} 37. Ra6 {[%clk
00:00:36]} {[%emt 00:00:33]} Ke7 {[%clk 00:24:18]} {[%emt 00:00:02]} 38. Nc1
{[%clk 00:00:32]} {[%emt 00:00:35]} Nb8 {[%clk 00:22:49]} {[%emt 00:01:59]} 39.
Ra1 {[%clk 00:00:36]} {[%emt 00:00:26]} Bf2 {[%clk 00:22:52]} {[%emt 00:00:27]}
40. Ra5 {[%clk 00:00:32]} {[%emt 00:00:34]} c6 {[%clk 00:16:58]} {[%emt
00:06:24]} 41. Nd3 {[%clk 00:00:41]} {[%emt 00:00:20]} Bxh4 {[%clk 00:14:56]}
{[%emt 00:02:32]} 42. Nc5 {[%clk 00:00:32]} {[%emt 00:00:39]} Bf2 {[%clk
00:49:46]} {[%emt 00:15:40]} 43. Ra7+ {[%clk 00:22:47]} {[%emt 00:28:16]} Ke8
{[%clk 00:49:20]} {[%emt 00:00:56]} 44. Kxf2 {[%clk 00:23:02]} {[%emt
00:00:15]} Rxd2+ {[%clk 00:49:44]} {[%emt 00:00:06]} 45. Ke3 {[%clk 00:23:27]}
{[%emt 00:00:05]} Rd8 {[%clk 00:48:31]} {[%emt 00:01:43]} 46. Ne6 {[%clk
00:23:12]} {[%emt 00:00:45]} Rd7 {[%clk 00:46:48]} {[%emt 00:02:13]} 47. Ra8
{[%clk 00:23:32]} {[%emt 00:00:10]} Rb7 {[%clk 00:47:11]} {[%emt 00:00:07]} 48.
Nc5 {[%clk 00:23:58]} {[%emt 00:00:04]} 1-0

[Event "FIDE Grand Swiss 2023"]
[Site "Villa Marina, Douglas, Isle of Man, Isle Of Man"]
[Date "2023.11.02"]
[Round "8.6"]
[White "Predke, Alexandr"]
[Black "Fedoseev, Vladimir"]
[Result "1/2-1/2"]
[TimeControl "40/90 + 30 + 30s/move"]
[WhiteFideId "24107581"]
[BlackFideId "24130737"]
[WhiteElo "2656"]
[BlackElo "2691"]

1. d4 {[%clk 01:40:51]} {[%emt 00:00:09]} d5 {[%clk 01:40:32]} {[%emt
00:00:27]} 2. c4 {[%clk 01:39:15]} {[%emt 00:02:07]} c6 {[%clk 01:40:54]}
{[%emt 00:00:08]} 3. Nf3 {[%clk 01:39:37]} {[%emt 00:00:08]} Nf6 {[%clk
01:41:17]} {[%emt 00:00:07]} 4. Nc3 {[%clk 01:39:57]} {[%emt 00:00:10]} e6
{[%clk 01:41:40]} {[%emt 00:00:06]} 5. g3 {[%clk 01:40:05]} {[%emt 00:00:23]}
Be7 {[%clk 01:40:46]} {[%emt 00:01:24]} 6. Bg2 {[%clk 01:39:56]} {[%emt
00:00:39]} O-O {[%clk 01:40:11]} {[%emt 00:01:05]} 7. O-O {[%clk 01:40:11]}
{[%emt 00:00:14]} b6 {[%clk 01:40:33]} {[%emt 00:00:09]} 8. Nd2 {[%clk
01:36:57]} {[%emt 00:03:44]} a5 {[%clk 01:37:38]} {[%emt 00:03:26]} 9. e4
{[%clk 01:26:48]} {[%emt 00:10:37]} dxc4 {[%clk 01:37:40]} {[%emt 00:00:28]} 10.
Nxc4 {[%clk 01:26:51]} {[%emt 00:00:28]} Ba6 {[%clk 01:37:54]} {[%emt
00:00:16]} 11. b3 {[%clk 01:26:58]} {[%emt 00:00:23]} b5 {[%clk 01:25:53]}
{[%emt 00:12:31]} 12. Ne3 {[%clk 01:25:28]} {[%emt 00:02:00]} b4 {[%clk
01:24:53]} {[%emt 00:01:30]} 13. Ne2 {[%clk 01:25:47]} {[%emt 00:00:11]} Bxe2
{[%clk 01:18:11]} {[%emt 00:07:12]} 14. Qxe2 {[%clk 01:26:10]} {[%emt
00:00:07]} Qxd4 {[%clk 01:18:35]} {[%emt 00:00:06]} 15. Bb2 {[%clk 01:25:24]}
{[%emt 00:01:15]} Qa7 {[%clk 01:17:01]} {[%emt 00:02:05]} 16. Rac1 {[%clk
01:15:32]} {[%emt 00:10:21]} Qa6 {[%clk 01:16:14]} {[%emt 00:01:17]} 17. Qc2
{[%clk 01:04:19]} {[%emt 00:11:43]} Ra7 {[%clk 01:13:47]} {[%emt 00:02:58]} 18.
Rfd1 {[%clk 01:01:47]} {[%emt 00:03:02]} Rd7 {[%clk 01:12:46]} {[%emt
00:01:31]} 19. Bxf6 {[%clk 00:53:21]} {[%emt 00:08:56]} Rxd1+ {[%clk 01:07:20]}
{[%emt 00:05:56]} 20. Rxd1 {[%clk 00:53:35]} {[%emt 00:00:15]} Bxf6 {[%clk
01:07:43]} {[%emt 00:00:07]} 21. Qc5 {[%clk 00:53:41]} {[%emt 00:00:24]} Rd8
{[%clk 01:01:50]} {[%emt 00:06:23]} 22. Rxd8+ {[%clk 00:53:24]} {[%emt
00:00:47]} Bxd8 {[%clk 01:02:11]} {[%emt 00:00:09]} 23. Nc4 {[%clk 00:53:50]}
{[%emt 00:00:04]} Qc8 {[%clk 00:49:10]} {[%emt 00:13:31]} 24. e5 {[%clk
00:33:56]} {[%emt 00:20:25]} Qc7 {[%clk 00:45:17]} {[%emt 00:04:23]} 25. Kf1
{[%clk 00:32:26]} {[%emt 00:01:59]} g5 {[%clk 00:41:28]} {[%emt 00:04:19]} 26.
h3 {[%clk 00:29:21]} {[%emt 00:03:36]} Kg7 {[%clk 00:39:47]} {[%emt 00:02:11]}
27. f4 {[%clk 00:23:22]} {[%emt 00:06:29]} gxf4 {[%clk 00:34:42]} {[%emt
00:05:34]} 28. gxf4 {[%clk 00:23:44]} {[%emt 00:00:08]} Be7 {[%clk 00:34:44]}
{[%emt 00:00:29]} 29. Nd6 {[%clk 00:22:27]} {[%emt 00:01:47]} Kf8 {[%clk
00:29:18]} {[%emt 00:05:56]} 30. Ke2 {[%clk 00:22:39]} {[%emt 00:00:18]} Qd8
{[%clk 00:25:01]} {[%emt 00:04:48]} 31. Be4 {[%clk 00:21:04]} {[%emt 00:02:04]}
h6 {[%clk 00:23:21]} {[%emt 00:02:10]} 32. Bf3 {[%clk 00:18:50]} {[%emt
00:02:44]} Qc7 {[%clk 00:21:28]} {[%emt 00:02:23]} 33. Be4 {[%clk 00:18:04]}
{[%emt 00:01:16]} Qd8 {[%clk 00:16:53]} {[%emt 00:05:05]} 34. Bf3 {[%clk
00:17:23]} {[%emt 00:01:10]} 1/2-1/2